bitfinex-derivatives/quotes_ETHF0:USTF0_20260118
["timestamp","ask_amount","ask_price","bid_price","bid_amount"]
[1768771644235,0.94786008,3342.0,3340.5,0.95596158]
[1768771644535,0.14966,3342.1,3340.5,0.95596158]
[1768771644836,0.94784185,3342.0,3340.5,0.95596158]
[1768771645033,0.14966,3342.1,3340.5,0.95596158]
[1768771645235,0.94784129,3342.0,3340.5,0.95596158]
[1768771645426,0.14966,3342.1,3340.5,0.95596158]
[1768771645630,0.9478274,3342.0,3340.5,0.95596158]
[1768771645830,0.14256378,3342.0,3340.5,0.95596158]
[1768771646637,0.29222378,3342.0,3340.5,0.95596158]
[1768771653744,0.29222378,3342.0,3340.5,1.08818119]
[1768771654945,0.29222378,3342.0,3340.9,0.95608703]
[1768771664458,0.95608703,3341.8,3340.5,0.13221961]
[1768771664659,1.10575703,3341.8,3340.3,0.95608703]
[1768771664959,0.14967,3341.8,3340.7,0.95608703]
[1768771671170,0.14967,3341.8,3340.1,0.12881436]
[1768771671366,0.14967,3341.8,3340.6,0.95608703]
[1768771676071,0.14967,3341.8,3340.6,1.0964558]
[1768771676467,0.14965,3342.2,3341.0,0.95608703]
[1768771676677,0.94735397,3342.1,3341.0,0.95608703]
[1768771676868,0.94735397,3342.0,3341.0,0.95608703]
[1768771677068,0.94735397,3341.9,3341.0,0.95608703]
[1768771677268,0.14965,3342.2,3341.0,0.95608703]
[1768771677468,0.94735917,3342.1,3341.0,0.95608703]
[1768771677673,0.94735917,3342.0,3341.0,0.95608703]
[1768771677872,0.94735917,3341.9,3341.0,0.95608703]
[1768771678072,0.14965,3342.2,3341.0,0.95608703]
[1768771678274,0.94735685,3342.1,3341.0,0.95608703]
[1768771678573,0.94735685,3342.0,3340.8,1.0964558]
[1768771678872,0.94735685,3341.9,3340.8,1.0964558]
[1768771679073,0.14965,3342.2,3340.8,1.0964558]
[1768771679375,0.94748457,3342.1,3340.8,1.0964558]
[1768771679567,0.94748457,3342.0,3340.8,1.0964558]
[1768771679767,0.94748457,3341.9,3340.8,1.0964558]
[1768771679972,1.10573703,3342.2,3340.8,1.0964558]
[1768771680178,0.94749209,3342.1,3340.8,1.0964558]
[1768771680474,0.94749209,3342.0,3340.8,1.0964558]
[1768771680674,0.94749209,3341.9,3340.8,1.0964558]
[1768771680875,1.10573703,3342.2,3340.8,1.0964558]
[1768771681070,0.947495,3342.1,3340.8,1.0964558]
[1768771681271,0.947495,3342.0,3340.8,1.0964558]
[1768771681475,0.947495,3341.9,3340.8,1.0964558]
[1768771681674,1.10573703,3342.2,3340.8,1.0964558]
[1768771681876,0.94750934,3342.1,3340.8,1.0964558]
[1768771682075,0.94750934,3342.0,3340.8,1.0964558]
[1768771682374,0.94750934,3341.9,3340.8,1.0964558]
[1768771682575,1.10573703,3342.2,3340.8,1.0964558]
[1768771682776,0.94749915,3342.1,3340.8,1.0964558]
[1768771682969,0.94749915,3342.0,3340.8,1.0964558]
[1768771683169,0.94749915,3341.9,3340.8,1.0964558]
[1768771683369,1.10573703,3342.2,3340.8,1.0964558]
[1768771683569,0.94749397,3342.1,3340.8,1.0964558]
[1768771683770,0.94749397,3342.0,3340.8,1.0964558]
[1768771683970,0.94749397,3341.9,3340.8,1.0964558]
[1768771684172,0.14965,3342.1,3340.8,1.0964558]
[1768771684374,0.94743093,3342.0,3340.8,1.0964558]
[1768771684576,0.94743093,3341.9,3340.8,1.0964558]
[1768771684776,0.14965,3342.1,3340.8,1.0964558]
[1768771684977,0.94743812,3342.0,3340.8,1.0964558]
[1768771685179,0.94743812,3341.9,3340.8,1.0964558]
[1768771685380,0.14965,3342.1,3340.8,1.0964558]
[1768771685579,0.9474616,3342.0,3340.8,1.0964558]
[1768771685779,0.9474616,3341.9,3340.8,1.0964558]
[1768771686081,0.14965,3342.1,3340.8,1.0964558]
[1768771686282,0.94747957,3342.0,3340.8,1.0964558]
[1768771686467,0.94747957,3341.9,3340.8,1.0964558]
[1768771686771,0.14965,3342.1,3340.8,1.0964558]
[1768771687070,0.94723287,3342.0,3340.8,1.0964558]
[1768771687267,0.94723287,3341.9,3340.8,1.0964558]
[1768771687474,0.14965,3342.1,3340.8,1.0964558]
[1768771687780,0.94717968,3342.0,3340.8,1.0964558]
[1768771688084,0.94717968,3341.9,3340.8,1.0964558]
[1768771688284,0.14965,3342.1,3340.8,1.0964558]
[1768771688480,0.94711292,3342.0,3340.8,1.0964558]
[1768771688681,0.94711292,3341.9,3340.8,1.0964558]
[1768771688880,0.14965,3342.1,3340.8,1.0964558]
[1768771689081,0.94711452,3342.0,3340.8,1.0964558]
[1768771689281,0.94711452,3341.9,3340.8,1.0964558]
[1768771694584,0.14966,3342.0,3340.8,1.0964558]
[1768771694786,0.9473706,3341.9,3340.8,1.0964558]
[1768771694978,0.14966,3342.0,3340.8,1.0964558]
[1768771695177,0.9473706,3341.9,3340.8,1.0964558]
[1768771695378,0.14966,3342.0,3340.8,1.0964558]
[1768771695578,0.94736412,3341.9,3340.8,1.0964558]
[1768771695778,0.14966,3342.0,3340.8,1.0964558]
[1768771695989,0.94736412,3341.9,3340.8,1.0964558]
[1768771696180,0.14966,3342.0,3340.8,1.0964558]
[1768771696381,0.95608703,3341.7,3340.4,1.0964558]
[1768771696896,0.14967,3341.8,3340.4,1.0964558]
[1768771697181,0.14967,3341.8,3340.6,0.95608703]
[1768771699889,0.14967,3341.8,3340.4,0.14036877]
[1768771700090,0.14967,3341.8,3340.5,0.95608703]
[1768771701378,0.14967,3341.8,3340.4,0.14036877]
[1768771701584,1.10575703,3341.7,3340.4,1.0964558]
[1768771710701,0.14967,3341.7,3340.4,1.0964558]
[1768771712395,0.14967,3341.7,3340.6,0.95608703]
[1768771714913,0.14967,3341.7,3340.4,0.14036877]
[1768771744838,0.13643082,3342.0,3340.4,0.14036877]
[1768771745138,0.94795257,3341.9,3340.4,0.14036877]
[1768771745332,0.94795257,3341.8,3340.4,0.14036877]
[1768771745538,0.14965,3342.1,3340.4,0.14036877]
[1768771745842,1.09760232,3342.0,3340.4,0.14036877]
[1768771746034,0.94794232,3341.9,3340.4,0.14036877]
[1768771747432,0.00218213,3342.3,3340.8,0.13046674]
[1768771747634,0.94798536,3342.2,3341.1,1.08677307]
[1768771747834,0.00218213,3342.3,3341.1,0.13046674]
[1768771748735,0.00218213,3342.3,3340.7,0.13046674]
[1768771750241,0.15183213,3342.3,3340.7,0.13046674]
[1768771776885,0.15183213,3342.3,3341.0,0.95598364]
[1768771777181,0.94658522,3342.2,3341.0,0.95598364]
[1768771777373,0.15183213,3342.3,3341.0,0.95598364]
[1768771777568,0.94658503,3342.2,3341.0,0.95598364]
[1768771777775,0.15183213,3342.3,3341.0,0.95598364]
[1768771778083,0.94658507,3342.2,3341.0,0.95598364]
[1768771778282,0.15183213,3342.3,3341.0,0.95598364]
[1768771778482,0.94672132,3342.2,3341.0,0.95598364]
[1768771778684,0.15183213,3342.3,3341.0,0.95598364]
[1768771778886,0.94675602,3342.2,3341.0,0.95598364]
[1768771779084,0.15183213,3342.3,3341.0,0.95598364]
[1768771779384,0.94675554,3342.2,3341.0,0.95598364]
[1768771779578,0.15183213,3342.3,3341.0,0.95598364]
[1768771779781,0.94675147,3342.2,3341.0,0.95598364]
[1768771780088,0.15183213,3342.3,3341.0,0.95598364]
[1768771780288,0.9467499,3342.2,3341.0,0.95598364]
[1768771780480,0.15183213,3342.3,3341.0,0.95598364]
[1768771780680,0.9467491,3342.2,3341.0,0.95598364]
[1768771780878,0.15183213,3342.3,3341.0,0.95598364]
[1768771781175,0.94675065,3342.2,3341.0,0.95598364]
[1768771781377,0.15183213,3342.3,3341.0,0.95598364]
[1768771781578,0.94675565,3342.2,3341.0,0.95598364]
[1768771781775,0.15183213,3342.3,3341.0,0.95598364]
[1768771781981,0.94675569,3342.2,3341.0,0.95598364]
[1768771782193,0.15183213,3342.3,3341.0,0.95598364]
[1768771782488,0.94675665,3342.2,3341.0,0.95598364]
[1768771782688,0.15183213,3342.3,3341.0,0.95598364]
[1768771782990,0.94675749,3342.2,3341.0,0.95598364]
[1768771783184,0.14965,3342.2,3341.0,1.09539445]
[1768771783387,0.14965,3342.2,3341.1,0.13941081]
[1768771783884,0.14965,3342.2,3341.0,0.95598364]
[1768771787195,0.14966,3342.1,3341.0,0.95598364]
[1768771787393,0.14966,3342.1,3340.8,0.95598364]
[1768771788202,1.10564364,3342.1,3340.7,0.13941081]
[1768771788385,1.10564364,3342.1,3340.7,1.09539445]
[1768771792199,1.10564364,3342.1,3340.9,0.95598364]
[1768771794194,1.10564364,3342.1,3340.7,0.13941081]
[1768771794501,1.10564364,3342.1,3340.8,0.95598364]
[1768771796804,0.9464015,3342.0,3340.8,0.95598364]
[1768771796995,1.10564364,3342.1,3340.8,0.95598364]
[1768771799405,0.14966,3342.1,3340.8,0.95598364]
[1768771799606,0.14966,3342.1,3340.8,1.08904268]
[1768771800006,0.14966,3342.1,3341.0,0.95598364]
[1768771800699,0.14966,3342.1,3341.2,0.95598364]
[1768771800900,0.00218213,3342.3,3341.4,0.95598364]
[1768771801794,0.14961,3343.0,3342.0,0.95598364]
[1768771802905,0.54977801,3342.8,3342.0,0.95598364]
[1768771803708,0.54977801,3342.8,3341.8,1.08904268]
[1768771804011,0.54977801,3342.8,3341.8,0.13305904]
[1768771804305,0.54977801,3342.8,3341.6,0.95598364]
[1768771805106,0.00267827,3342.8,3341.6,0.95598364]
[1768771806217,0.1425793,3342.6,3341.0,0.13305904]
[1768771806514,0.95598364,3342.4,3341.0,1.08904268]
[1768771806712,0.95598364,3342.5,3341.1,0.13305904]
[1768771806907,0.94472397,3342.4,3341.1,0.13305904]
[1768771807112,0.95598364,3342.5,3341.1,0.13305904]
[1768771807310,0.94472572,3342.4,3341.1,0.13305904]
[1768771807501,0.95598364,3342.5,3341.1,0.13305904]
[1768771807702,0.94472478,3342.4,3341.1,0.13305904]
[1768771808009,0.95598364,3342.5,3341.1,0.13305904]
[1768771808212,0.94472478,3342.4,3341.1,0.13305904]
[1768771808414,0.95598364,3342.5,3341.1,0.13305904]
[1768771808614,0.94472662,3342.4,3341.1,0.13305904]
[1768771808913,0.95598364,3342.5,3341.1,0.13305904]
[1768771809107,0.94472809,3342.4,3341.1,0.13305904]
[1768771809306,0.95598364,3342.5,3341.1,0.13305904]
[1768771809514,0.94473006,3342.4,3341.1,0.13305904]
[1768771809704,0.95598364,3342.5,3341.1,0.13305904]
[1768771809904,0.00267827,3342.8,3341.8,0.95598364]
[1768771810104,0.9447964,3342.7,3341.5,0.13305904]
[1768771810305,0.00267827,3342.8,3341.5,0.13305904]
[1768771811315,0.95598364,3342.6,3340.4,0.13305904]
[1768771811510,0.95598364,3342.3,3340.9,0.13305904]
[1768771811914,0.95598364,3342.5,3341.1,0.13305904]
[1768771812212,0.14525757,3342.8,3341.2,1.08904268]
[1768771812404,0.00267827,3342.8,3341.6,0.95598364]
[1768771815016,0.00267827,3342.8,3341.6,1.08904268]
[1768771815224,0.00267827,3342.8,3341.8,0.95598364]
[1768771815422,0.00267827,3342.8,3341.6,0.13305904]
[1768771815717,0.00267827,3342.8,3341.7,0.13305904]
[1768771815917,0.00267827,3342.8,3341.9,0.95598364]
[1768771816219,0.00267827,3342.8,3341.7,1.08904268]
[1768771817018,0.00267827,3342.8,3342.0,0.95598364]
[1768771820019,0.00267827,3342.8,3342.0,1.08904268]
[1768771820321,0.00267827,3342.8,3342.1,0.13305904]
[1768771823523,0.1496,3343.3,3342.1,0.13305904]
[1768771824426,0.15188481,3343.3,3342.1,0.13305904]
[1768771833216,0.14961,3343.2,3342.1,0.13305904]
[1768771833419,1.10559364,3343.1,3341.7,0.1366333]
[1768771833621,0.95598364,3342.8,3341.7,0.1366333]
[1768771835129,1.10559364,3343.0,3341.7,0.1366333]
[1768771836932,0.14961,3343.0,3341.7,0.1366333]
[1768771840526,0.14963,3342.7,3341.3,0.1361434]
[1768771859147,0.1331486,3343.0,3341.3,0.1361434]
[1768771859347,0.2827586,3343.0,3341.3,0.1361434]
[1768771859648,0.14961,3343.0,3341.3,0.1361434]
[1768771860243,0.14961,3343.0,3341.7,0.13538226]
[1768771860842,0.00228481,3343.3,3342.0,1.0910593]
[1768771861252,0.00228481,3343.3,3342.0,0.13538226]
[1768771862164,0.15188481,3343.3,3342.0,0.13538226]
[1768771872670,0.00228481,3343.3,3342.2,0.13538226]
[1768771872864,0.00228481,3343.3,3342.2,0.13911406]
[1768771873064,0.00228481,3343.3,3342.2,0.0037318]
[1768771875468,0.28088784,3343.2,3342.2,0.0037318]
[1768771882973,0.13127784,3343.2,3342.2,0.0037318]
[1768771883181,0.14963,3342.7,3341.4,0.13361051]
[1768771883679,0.14963,3342.6,3341.0,0.13361051]
[1768771884181,0.14964,3342.5,3341.0,0.13734342]
[1768771885180,0.29038617,3342.5,3341.0,0.13734342]
[1768771885679,0.14964,3342.4,3341.0,0.13734342]
[1768771885866,0.29038617,3342.4,3341.0,0.13734342]
[1768771886270,0.14965,3342.2,3341.0,0.00373291]
[1768771898884,0.14965,3342.2,3341.1,0.95598561]
[1768771910893,0.14965,3342.2,3341.0,0.95971852]
[1768771912787,0.14965,3342.1,3341.0,0.00373291]
[1768771913696,0.95598561,3341.8,3341.0,0.00373291]
[1768771914700,0.95598561,3341.8,3340.2,0.45532903]
[1768771914908,0.95598561,3341.8,3340.6,0.95598561]
[1768771915697,1.09187938,3341.8,3340.6,0.95598561]
[1768771915897,1.09187938,3341.8,3340.6,0.95883627]
[1768771916298,0.13589377,3341.8,3340.6,0.95883627]
[1768771921401,0.13589377,3341.8,3340.8,0.95598561]
[1768771921597,0.14966,3341.9,3340.8,0.95598561]
[1768771937413,0.14966,3341.9,3340.7,0.95598561]
[1768771942715,0.14966,3341.9,3340.8,0.95598561]
[1768771943814,0.95598561,3341.5,3340.6,0.00285066]
[1768771944121,0.46931583,3341.3,3340.6,0.00285066]
[1768771945710,0.61900583,3341.3,3340.6,0.00285066]
[1768771947612,0.14969,3341.2,3340.6,0.00285066]
[1768771947815,0.95598561,3340.9,3339.7,0.18429674]
[1768771948218,0.95598561,3341.1,3339.7,0.18429674]
[1768771948620,0.14971,3340.9,3339.8,0.95598561]
[1768771950416,0.95919214,3341.1,3339.8,0.95598561]
[1768771950621,0.00320653,3341.1,3339.8,0.95598561]
[1768771951525,0.00320653,3341.1,3339.9,0.95598561]
[1768771954832,0.00320653,3341.1,3339.7,0.18758563]
[1768771955033,0.00320653,3341.1,3339.9,0.95598561]
[1768771956243,0.15290653,3341.1,3339.9,0.95598561]
[1768771956445,0.1497,3341.0,3339.7,1.14357124]
[1768771958839,0.1497,3341.0,3339.7,0.18758563]
[1768771977655,0.00320653,3341.1,3339.7,0.18758563]
[1768771979053,0.14967,3341.8,3340.4,0.2628377]
[1768771979361,0.14965,3342.2,3340.8,0.2628377]
[1768771979546,0.93829856,3342.1,3340.8,0.2628377]
[1768771979746,0.14965,3342.2,3340.8,0.2628377]
[1768771979952,0.93830306,3342.1,3340.8,0.2628377]
[1768771980252,0.15184318,3342.2,3340.8,0.2628377]
[1768771983465,0.25808079,3343.0,3341.5,1.21956294]
[1768771983758,0.14961,3343.2,3341.6,0.2628377]
[1768771984056,0.9372482,3343.1,3341.6,0.2628377]
[1768771984246,0.14961,3343.2,3341.6,0.2628377]
[1768771984546,0.15191604,3343.2,3341.6,0.2628377]
[1768771986554,0.25808079,3343.1,3340.5,0.2628377]
[1768771986764,0.25808079,3342.9,3340.9,0.2628377]
[1768771988754,0.25808079,3342.8,3340.9,0.2628377]
[1768771993258,0.40770079,3342.8,3340.9,0.2628377]
[1768771997862,0.40770079,3342.8,3341.2,1.21956294]
[1768771998058,0.40998683,3343.2,3341.6,0.95672524]
[1768771998264,0.40998683,3343.2,3341.6,1.21956294]
[1768771999972,0.14961,3343.1,3341.6,1.21956294]
[1768772000267,0.14961,3343.1,3341.7,0.2628377]
[1768772001774,0.14961,3343.0,3341.7,0.2628377]
[1768772005261,0.26038683,3343.2,3341.7,0.2628377]
[1768772005262,0.00230604,3343.2,3341.7,0.2628377]
[1768772008265,0.00230604,3343.2,3342.0,1.25132837]
[1768772008675,0.00230604,3343.2,3342.1,0.29460313]
[1768772008872,0.00230604,3343.2,3342.1,0.29812284]
[1768772020387,0.00230604,3343.2,3342.1,0.00351971]
[1768772020977,0.95788131,3343.2,3342.1,0.00351971]
[1768772021592,1.10748131,3343.2,3342.1,0.00351971]
[1768772026892,0.15190604,3343.2,3342.1,0.00351971]
[1768772031598,0.15190604,3343.2,3342.2,0.95557527]
[1768772031794,0.00230604,3343.2,3342.2,0.95557527]
[1768772033892,0.31032472,3345.2,3343.2,0.3082736]
[1768772034092,0.14953,3344.8,3344.1,0.95557527]
[1768772034293,0.14953,3344.8,3343.8,0.95557527]
[1768772034792,0.15172622,3344.8,3343.8,0.95557527]
[1768772040196,0.15172622,3344.8,3343.7,0.95557527]
[1768772040494,0.15172622,3344.8,3344.0,0.95557527]
[1768772042494,0.15172622,3344.8,3343.2,0.3082736]
[1768772042702,0.15172622,3344.8,3343.9,0.95557527]
[1768772045402,0.45987472,3344.5,3343.0,0.3082736]
[1768772045594,0.31032472,3344.4,3343.1,0.95557527]
[1768772047298,0.14955,3344.5,3343.4,0.95557527]
[1768772054707,0.14955,3344.5,3343.0,0.3082736]
[1768772054910,0.14955,3344.5,3342.0,0.95557527]
[1768772054911,0.14956,3344.2,3342.8,0.95557527]
[1768772055203,0.14956,3344.2,3343.1,0.95557527]
[1768772059509,0.31032472,3344.5,3343.3,0.95557527]
[1768772059709,0.14954,3344.6,3343.7,0.95557527]
[1768772060018,0.00219622,3344.8,3343.0,0.95557527]
[1768772060019,0.00219622,3344.8,3344.3,0.95557527]
[1768772060913,0.14952,3345.0,3344.3,0.95557527]
[1768772062017,0.1524906,3345.0,3344.0,0.95557527]
[1768772068517,0.14953,3344.9,3343.9,0.95557527]
[1768772069019,0.14954,3344.7,3343.4,0.95557527]
[1768772070120,0.14954,3344.7,3343.3,0.34604312]
[1768772070325,1.10511527,3344.6,3343.2,0.95557527]
[1768772070721,0.14954,3344.6,3343.4,0.95557527]
[1768772071229,0.32829638,3345.0,3343.6,0.95557527]
[1768772073728,0.47781638,3345.0,3343.5,0.34604312]
[1768772073924,0.47781638,3345.0,3343.7,0.95557527]
[1768772074625,0.1524906,3345.0,3344.4,0.95557527]
[1768772075125,0.0029706,3345.0,3344.4,0.95557527]
[1768772077932,0.0029706,3345.0,3343.8,0.95557527]
[1768772080933,0.1524906,3345.0,3343.6,0.36822575]
[1768772081237,0.95557527,3344.9,3343.6,1.32380102]
[1768772082028,0.1524906,3345.0,3343.8,0.95557527]
[1768772083027,0.1524906,3345.0,3343.6,0.36822575]
[1768772089540,0.14953,3344.9,3343.6,0.36822575]
[1768772089744,0.14953,3344.8,3343.6,0.36822575]
[1768772092642,0.0029706,3345.0,3343.6,0.36822575]
[1768772097341,0.34278211,3347.2,3345.0,0.366963]
[1768772097544,0.34278211,3347.0,3345.3,0.366963]
[1768772097738,1.27935905,3346.9,3345.4,0.366963]
[1768772097928,0.14945,3346.7,3344.9,0.366963]
[1768772098129,0.00369252,3346.7,3345.1,0.366963]
[1768772098333,0.00369252,3346.7,3344.8,0.9544369]
[1768772098334,1.46532214,3346.6,3345.3,0.366963]
[1768772098536,1.46532214,3346.6,3345.4,0.8343072]
[1768772098734,1.46532214,3346.5,3345.5,0.4673442]
[1768772099035,1.46532214,3346.3,3345.6,0.4673442]
[1768772099235,1.46532214,3346.3,3345.7,0.4673442]
[1768772099547,1.46532214,3346.1,3345.8,0.4673442]
[1768772099844,1.46532214,3346.3,3345.9,0.4673442]
[1768772100038,1.46532214,3346.3,3346.0,0.4673442]
[1768772100238,0.15314252,3346.7,3346.1,0.4673442]
[1768772100436,0.15314252,3346.7,3345.4,0.366963]
[1768772100437,0.14946,3346.5,3345.4,0.366963]
[1768772100739,1.46532214,3346.0,3345.0,0.366963]
[1768772100936,0.14947,3346.2,3345.0,0.366963]
[1768772100937,1.46532214,3346.1,3345.0,0.366963]
[1768772101134,0.14947,3346.2,3345.0,0.366963]
[1768772101135,1.46532214,3345.9,3345.0,0.366963]
[1768772101638,1.46532214,3345.7,3345.0,0.366963]
[1768772101851,0.9544369,3346.1,3344.6,0.366963]
[1768772102035,0.14949,3345.7,3344.6,0.366963]
[1768772102237,1.46532214,3345.5,3344.6,0.366963]
[1768772102441,1.46532214,3345.3,3344.6,0.366963]
[1768772102931,1.46532214,3345.1,3343.7,0.9544369]
[1768772103135,0.14949,3345.7,3343.7,0.9544369]
[1768772103944,0.14949,3345.7,3343.7,0.95728273]
[1768772104945,0.14949,3345.7,3343.8,0.366963]
[1768772105444,1.61481214,3345.7,3343.8,0.366963]
[1768772105745,0.14949,3345.7,3343.8,0.366963]
[1768772105942,1.61481214,3345.7,3343.8,0.366963]
[1768772106141,1.46532214,3345.6,3343.8,0.366963]
[1768772106344,1.61481214,3345.7,3343.8,0.366963]
[1768772106744,0.14949,3345.7,3343.8,0.366963]
[1768772107341,1.61481214,3345.7,3343.9,0.366963]
[1768772107742,1.46532214,3345.6,3343.9,0.366963]
[1768772108148,1.1736323,3345.6,3343.9,0.366963]
[1768772108342,0.14949,3345.7,3343.9,0.366963]
[1768772108343,1.1736323,3345.5,3343.9,0.366963]
[1768772108738,0.14949,3345.7,3343.9,0.366963]
[1768772108941,1.1736323,3345.6,3343.9,0.366963]
[1768772109447,1.1736323,3345.5,3343.9,0.366963]
[1768772109641,1.1736323,3345.6,3343.9,0.366963]
[1768772110046,1.1736323,3345.5,3343.9,0.366963]
[1768772110247,1.1736323,3345.6,3343.9,0.366963]
[1768772110741,1.1736323,3345.5,3343.9,0.366963]
[1768772111249,1.1736323,3345.4,3343.9,0.366963]
[1768772111547,1.1736323,3345.5,3343.9,0.366963]
[1768772112650,0.1495,3345.6,3343.9,0.366963]
[1768772112949,1.1736323,3345.5,3343.9,0.366963]
[1768772113448,1.1736323,3345.4,3343.9,0.366963]
[1768772114153,1.1736323,3345.3,3343.9,0.366963]
[1768772114349,0.1495,3345.6,3343.9,0.366963]
[1768772114851,1.1736323,3345.4,3343.9,0.366963]
[1768772115049,1.1736323,3345.5,3343.9,0.366963]
[1768772115452,1.1736323,3345.4,3343.9,0.366963]
[1768772115643,1.1736323,3345.5,3343.9,0.366963]
[1768772115843,0.1495,3345.6,3343.9,0.366963]
[1768772116244,1.1736323,3345.4,3343.9,0.366963]
[1768772116445,0.1495,3345.6,3343.9,0.366963]
[1768772116650,1.1736323,3345.4,3343.9,0.366963]
[1768772117155,1.1736323,3345.3,3343.9,0.366963]
[1768772117354,1.1736323,3345.4,3343.9,0.366963]
[1768772117756,1.1736323,3345.3,3343.9,0.366963]
[1768772117956,1.1736323,3345.4,3343.9,0.366963]
[1768772118157,1.3231323,3345.5,3343.9,0.366963]
[1768772118355,1.1736323,3345.4,3343.9,0.366963]
[1768772118660,1.1736323,3345.2,3343.9,0.366963]
[1768772118953,0.1495,3345.5,3343.9,0.366963]
[1768772119363,1.1736323,3345.4,3343.9,0.366963]
[1768772119860,1.1736323,3345.3,3343.9,0.366963]
[1768772120057,0.14951,3345.3,3343.9,0.366963]
[1768772120360,1.3231423,3345.3,3343.9,0.366963]
[1768772120560,1.1736323,3345.2,3343.9,0.366963]
[1768772120961,0.14951,3345.3,3343.9,0.366963]
[1768772121462,1.1736323,3345.2,3343.9,0.366963]
[1768772121962,0.14951,3345.3,3343.9,0.366963]
[1768772122159,1.1736323,3345.2,3343.9,0.366963]
[1768772122958,1.1736323,3345.1,3343.9,0.366963]
[1768772123154,1.1736323,3345.2,3343.9,0.366963]
[1768772123559,1.1736323,3345.1,3343.9,0.366963]
[1768772123764,1.1736323,3345.2,3343.9,0.366963]
[1768772124266,1.1736323,3345.1,3343.9,0.366963]
[1768772124455,0.14952,3345.2,3343.9,0.366963]
[1768772124662,0.68744075,3345.1,3343.9,0.366963]
[1768772124857,0.68744075,3345.0,3343.9,0.366963]
[1768772125064,0.68744075,3345.1,3343.9,0.366963]
[1768772125367,0.34278211,3345.4,3343.9,0.366963]
[1768772125562,0.68744075,3345.2,3343.9,0.366963]
[1768772126172,0.68744075,3345.1,3343.9,0.366963]
[1768772126371,0.68744075,3345.2,3343.9,0.366963]
[1768772126666,0.68744075,3345.1,3343.9,0.366963]
[1768772126877,0.68744075,3345.2,3343.9,0.366963]
[1768772127063,0.68744075,3345.1,3343.9,0.366963]
[1768772127465,0.68744075,3344.9,3343.9,0.366963]
[1768772127666,0.49229211,3345.4,3343.9,0.366963]
[1768772127863,0.68744075,3345.1,3343.9,0.366963]
[1768772128265,0.68744075,3345.0,3343.9,0.366963]
[1768772128470,0.68744075,3345.1,3343.9,0.366963]
[1768772128873,0.68744075,3345.0,3343.9,0.366963]
[1768772129170,0.68744075,3345.1,3343.9,0.366963]
[1768772129671,0.68744075,3345.0,3343.9,0.366963]
[1768772129874,0.68744075,3345.1,3343.9,0.366963]
[1768772130273,0.68744075,3345.0,3343.9,0.366963]
[1768772130472,0.68744075,3345.1,3343.9,0.366963]
[1768772131078,0.68744075,3345.0,3343.9,0.366963]
[1768772131377,0.68744075,3345.1,3343.9,0.366963]
[1768772131874,0.49229211,3345.4,3343.9,0.366963]
[1768772132079,0.68744075,3345.1,3343.9,0.366963]
[1768772132477,0.68744075,3344.9,3343.9,0.366963]
[1768772132678,0.68744075,3345.1,3343.9,0.366963]
[1768772133585,0.68744075,3344.9,3343.9,0.366963]
[1768772133880,0.68744075,3345.1,3343.9,0.366963]
[1768772134381,0.49229211,3345.4,3343.9,0.366963]
[1768772134583,0.20127737,3345.1,3343.9,0.366963]
[1768772134986,0.49229211,3345.4,3343.9,0.366963]
[1768772135287,0.20127737,3345.1,3343.9,0.366963]
[1768772135784,0.20127737,3344.9,3343.9,0.366963]
[1768772135989,0.20127737,3345.1,3343.9,0.366963]
[1768772136185,0.49229211,3345.4,3343.9,0.366963]
[1768772136779,0.20127737,3345.0,3343.9,0.366963]
[1768772137391,0.49229211,3345.4,3343.9,0.366963]
[1768772137591,0.20127737,3344.9,3343.9,0.366963]
[1768772137888,0.20127737,3345.0,3343.9,0.366963]
[1768772138491,0.20127737,3344.8,3343.9,0.366963]
[1768772138689,0.20127737,3345.0,3343.9,0.366963]
[1768772139690,0.20127737,3344.8,3343.9,0.366963]
[1768772139883,0.20127737,3344.9,3343.9,0.366963]
[1768772140084,0.20127737,3345.0,3343.9,0.366963]
[1768772140483,0.20127737,3344.8,3343.9,0.366963]
[1768772140684,0.14951,3345.3,3343.9,0.366963]
[1768772140890,0.20127737,3345.0,3343.9,0.366963]
[1768772141191,0.14951,3345.3,3343.9,0.366963]
[1768772141486,0.57539395,3345.2,3343.8,1.669]
[1768772142192,0.20127737,3344.9,3343.8,1.669]
[1768772142585,0.20127737,3344.8,3343.8,1.669]
[1768772142783,0.57539395,3345.2,3343.8,1.669]
[1768772142991,0.20127737,3344.8,3343.8,1.669]
[1768772143185,0.20127737,3344.9,3343.8,1.669]
[1768772143586,0.20127737,3344.8,3343.8,1.669]
[1768772143790,0.20127737,3344.9,3343.8,1.669]
[1768772144395,0.2904842,3345.2,3343.8,1.669]
[1768772144893,0.2904842,3345.2,3344.1,0.95427551]
[1768772146392,0.14952,3345.2,3344.1,0.95427551]
[1768772149290,1.60867048,3346.3,3344.9,0.95427551]
[1768772149491,0.93121428,3346.2,3345.3,0.95427551]
[1768772149794,0.14949,3345.8,3344.4,1.328]
[1768772149994,0.14949,3345.8,3344.6,0.95427551]
[1768772152693,0.14949,3345.8,3345.1,0.95427551]
[1768772155399,0.14949,3345.8,3344.8,0.95427551]
[1768772156891,0.14949,3345.8,3344.6,1.40416519]
[1768772157598,0.14949,3345.8,3344.2,1.146]
[1768772157799,0.14949,3345.8,3344.6,0.95427551]
[1768772171014,0.14949,3345.8,3344.9,0.95427551]
[1768772171417,0.14949,3345.8,3344.9,1.40416519]
[1768772178410,0.95427551,3346.4,3344.9,1.40416519]
[1768772178611,0.93414042,3346.3,3344.9,1.40416519]
[1768772178814,0.93414042,3346.2,3344.9,1.40416519]
[1768772179016,0.93414042,3346.1,3344.9,1.40416519]
[1768772179217,0.93414042,3346.0,3344.9,1.40416519]
[1768772179417,0.93414042,3345.9,3344.9,1.40416519]
[1768772179618,2.56294599,3346.4,3344.9,1.40416519]
[1768772179816,0.14948,3346.0,3344.9,1.40416519]
[1768772180022,1.08402009,3345.9,3344.9,1.40416519]
[1768772180221,0.14948,3345.9,3344.9,1.40416519]
[1768772184728,0.14949,3345.8,3344.9,1.40416519]
[1768772188334,0.95427551,3346.2,3344.9,1.40416519]
[1768772188535,0.93452109,3346.1,3344.9,1.40416519]
[1768772188727,0.14949,3345.8,3344.9,1.40416519]
[1768772198342,0.95427551,3346.2,3344.9,1.40416519]
[1768772198541,0.14949,3345.8,3344.9,1.40416519]
[1768772203043,0.95427551,3345.6,3344.5,0.43037856]
[1768772203244,0.95427551,3345.6,3343.7,5.36712956]
[1768772203245,1.10378551,3345.4,3344.1,0.43037856]
[1768772203445,0.14951,3345.3,3344.1,0.43037856]
[1768772203936,1.10379551,3345.2,3344.1,0.43037856]
[1768772204932,0.14952,3345.2,3344.1,0.43037856]
[1768772205138,0.14952,3345.2,3343.7,0.43322439]